fUSD/lending_fUSD_20250417
["ID","MTS","AMOUNT","RATE_DAILY","PERIOD"]
[358258435,1744876385290,-150.0,0.00746255,120]
[358258436,1744876385299,-150.0,0.00746278,120]
[358258437,1744876385309,-306.03775367,0.00746949,120]
[358258438,1744876385320,-150.0,0.00747064,120]
[358258439,1744876385330,-150.0,0.00747333,120]
[358258440,1744876385340,-150.0,0.00747333,120]
[358258441,1744876385349,-1505.01302126,0.0074747,120]
[358258442,1744876385358,-306.03775367,0.00747717,120]
[358258443,1744876385368,-10000.0,0.007478,120]
[358258444,1744876385378,-150.0,0.00747872,120]
[358258445,1744876385390,-10000.0,0.00748,120]
[358258446,1744876385399,-150.0,0.00748389,120]
[358258447,1744876385408,-306.03775367,0.00748485,120]
[358258448,1744876385418,-150.0,0.00748681,120]
[358258449,1744876385427,-10000.0,0.007488,120]
[358258450,1744876385436,-10000.0,0.0074888,120]
[358258451,1744876385446,-10000.0,0.007489,120]
[358258452,1744876385455,-306.03775367,0.00749253,120]
[358258453,1744876385464,-150.0,0.00749444,120]
[358258454,1744876385474,-150.0,0.00749444,120]
[358258455,1744876385484,-150.0,0.00749489,120]
[358258456,1744876385493,-1968000.0,0.007498,120]
[358258457,1744876385503,-10331.93610351,0.007499,120]
[358258458,1744876385514,-9999.99999901,0.007499,120]
[358258459,1744876385523,-16768521.0,0.007499,120]
[358258460,1744876385532,-1000.0,0.0074998,120]
[358258461,1744876385540,-500.0,0.0074999,120]
[358258462,1744876385549,-2415.0,0.0075,2]
[358258463,1744876389474,250.0,0.00017,2]
[358258464,1744876389888,250.0,0.000187,2]
[358258465,1744876390006,-250.0,0.00031846,2]
[358258467,1744877233127,-151.39,0.00024932,2]
[358258468,1744877233149,-250.0,0.00027425,2]
[358258469,1744877233173,-119.8943364,0.00036262,44]
[358258470,1744877237096,-166.43652418,0.00036262,44]
[358258471,1744877237118,-508.228,0.00045,120]
[358258472,1744877237142,-231.81542749,0.00048135,2]
[358258473,1744877237163,-150.0,0.000492,120]
[358258474,1744877237184,-559.16637853,0.00049215,2]
[358258475,1744877252026,17977.69109651,0.000265,120]
[358258477,1744877432492,-282.49710262,0.00049215,30]
[358258478,1744877432502,-222.43,0.00049314,120]
[358258479,1744877432512,-550.0,0.00049314,5]
[358258480,1744877432522,-500.0,0.00049315,120]
[358258481,1744877432536,-263.15140418,0.00049315,120]
[358258482,1744877432547,-237.84767939,0.00049315,120]
[358258483,1744877432557,-500.0,0.00049315,120]
[358258484,1744877432566,-141.74232061,0.00049315,120]
[358258485,1744877432581,-358.25767939,0.00049315,120]
[358258486,1744877432590,-500.0,0.00049315,120]
[358258487,1744877432600,-500.0,0.00049315,120]
[358258488,1744877432610,-500.0,0.00049315,120]
[358258489,1744877432619,-500.0,0.00049315,120]
[358258490,1744877432628,-500.0,0.00049315,120]
[358258491,1744877432637,-500.0,0.00049315,120]
[358258492,1744877432647,-669.78,0.00049315,120]
[358258493,1744877432656,-4043.73,0.00049315,7]
[358258494,1744877432665,-500.0,0.00049315,2]
[358258495,1744877432674,-500.0,0.00049315,120]
[358258496,1744877432684,-522.47718516,0.00049315,120]
[358258497,1744877432693,-500.0,0.00049315,120]
[358258498,1744877432703,-500.0,0.00049315,120]
[358258499,1744877432713,-516.83403231,0.00049315,120]
[358258500,1744877432722,-222.2301963,0.00049315,120]
[358258501,1744877432734,-195.07135443,0.00049315,120]
[358258502,1744877432744,-500.0,0.00049315,120]
[358258503,1744877432754,-511.53274264,0.00049315,120]
[358258504,1744877432763,-156.22480977,0.00049466,120]
[358258505,1744877432775,-843.77519023,0.00049466,120]
[358258506,1744877432785,-500.0,0.00049589,120]
[358258508,1744877432795,-500.0,0.00049589,120]
[358258510,1744877432804,-500.0,0.00049589,120]
[358258512,1744877432814,-500.0,0.00049589,120]
[358258514,1744877432823,-524.08487568,0.00049589,120]
[358258516,1744877432832,-204.88359099,0.00049589,120]
[358258518,1744877432843,-295.11640901,0.00049589,120]
[358258520,1744877432852,-669.78,0.00049589,120]
[358258522,1744877432861,-500.0,0.00049589,2]
[358258524,1744877432870,-597.54039191,0.00049589,120]
[358258526,1744877432879,-500.0,0.00049589,120]
[358258528,1744877432888,-500.0,0.00049589,120]
[358258530,1744877432897,-500.0,0.00049589,120]
[358258532,1744877432906,-5206.5721,0.00049663,2]
[358258534,1744877432915,-1584.0135,0.00049663,2]
[358258536,1744877432924,-224.6048,0.00049663,2]
[358258538,1744877432934,-269.2074,0.00049663,2]
[358258540,1744877432943,-315.9481,0.00049663,2]
[358258542,1744877432952,-1868.3494,0.00049663,2]
[358258544,1744877432961,-876.2753,0.00049763,2]
[358258546,1744877432970,-274.1272,0.00049763,2]
[358258548,1744877432980,-1000.0,0.00049763,2]
[358258550,1744877432990,-13333.1803,0.00049763,2]
[358258552,1744877432999,-299.1995,0.00049763,2]
[358258554,1744877433008,-8721.0,0.00049779,14]
[358258556,1744877433018,-500.0,0.00049863,120]
[358258558,1744877433027,-165.08559906,0.00049863,120]
[358258560,1744877433038,-303.01,0.00049863,120]
[358258563,1744877433050,-31.90440094,0.00049863,120]
[358258565,1744877433060,-500.0,0.00049863,120]
[358258567,1744877433069,-500.0,0.00049863,120]
[358258569,1744877433079,-669.78,0.00049863,120]
[358258570,1744877433088,-500.0,0.00049863,120]
[358258572,1744877433098,-500.0,0.00049863,120]
[358258573,1744877433108,-500.0,0.00049863,120]
[358258574,1744877433117,-40642.8805418,0.0005,120]
[358258575,1744877433126,-500.0,0.00050036,2]
[358258576,1744877433136,-16551.6074,0.00050036,2]
[358258577,1744877433146,-500.0,0.00050136,120]
[358258578,1744877433155,-500.0,0.00050136,120]
[358258579,1744877433165,-500.0,0.00050136,120]
[358258580,1744877433175,-619.17743293,0.00050136,120]
[358258581,1744877433184,-669.78,0.00050136,120]
[358258582,1744877433194,-189.35,0.00050136,120]
[358258583,1744877433204,-500.0,0.00050136,120]
[358258584,1744877433213,-500.0,0.00050136,120]
[358258585,1744877433222,-500.0,0.0005041,120]
[358258586,1744877433231,-500.0,0.0005041,120]
[358258587,1744877433241,-538.30765339,0.0005041,120]
[358258588,1744877433250,-669.78,0.0005041,120]
[358258589,1744877433259,-500.0,0.0005041,120]
[358258590,1744877433268,-500.0,0.0005041,120]
[358258591,1744877433278,-2225.84,0.00050574,2]
[358258592,1744877433287,-754.4932265,0.00050599,15]
[358258593,1744877433297,-5242.9812,0.00050599,2]
[358258594,1744877433306,-150.5,0.00050664,120]
[358258595,1744877433314,-500.0,0.00050684,120]
[358258596,1744877433323,-500.0,0.00050684,120]
[358258597,1744877433331,-669.78,0.00050684,120]
[358258598,1744877433341,-500.0,0.00050684,120]
[358258599,1744877433350,-500.0,0.00050684,120]
[358258600,1744877433359,-222.43,0.00050684,120]
[358258601,1744877433370,-166.66,0.00050699,2]
[358258602,1744877433379,-54464.7544,0.00050858,2]
[358258603,1744877433388,-500.0,0.00050958,120]
[358258604,1744877433398,-669.78,0.00050958,120]
[358258605,1744877433407,-500.0,0.00050958,120]
[358258606,1744877433416,-500.0,0.00050958,120]
[358258607,1744877433427,-500.0,0.00051232,120]
[358258608,1744877433436,-669.78,0.00051232,120]
[358258609,1744877433445,-500.0,0.00051232,120]
[358258610,1744877433455,-500.0,0.00051232,120]
[358258611,1744877433465,-150.0,0.00051383,2]
[358258612,1744877433474,-500.0,0.00051506,120]
[358258613,1744877433485,-669.78,0.00051506,120]
[358258614,1744877433495,-500.0,0.00051506,120]
[358258615,1744877433505,-644.43924735,0.00051506,120]
[358258616,1744877433515,-150.0,0.00051507,60]
[358258617,1744877433529,-150.0,0.00051507,60]
[358258618,1744877433539,-200.0,0.00051507,60]
[358258619,1744877433550,-500.0,0.0005178,120]
[358258620,1744877433559,-669.78,0.0005178,120]
[358258621,1744877433571,-1790.5,0.0005178,7]
[358258622,1744877433580,-500.0,0.0005178,120]
[358258623,1744877433590,-500.0,0.00052054,120]
[358258624,1744877433600,-669.78,0.00052054,120]
[358258625,1744877433610,-1790.54,0.00052054,7]
[358258626,1744877433620,-500.0,0.00052054,120]
[358258627,1744877433629,-222.43,0.00052054,120]
[358258628,1744877433639,-500.0,0.00052328,120]
[358258629,1744877433649,-669.78,0.00052328,120]
[358258630,1744877433658,-1790.54,0.00052328,7]
[358258631,1744877433668,-260.12398387,0.00052328,120]
[358258632,1744877433678,-500.0,0.00052602,120]
[358258633,1744877433687,-669.78,0.00052602,120]
[358258634,1744877433696,-1790.54,0.00052602,7]
[358258635,1744877433706,-500.0,0.00052876,120]
[358258636,1744877433715,-669.78,0.00052876,120]
[358258637,1744877433725,-1790.54,0.00052876,7]
[358258638,1744877433737,-188.0,0.00053,31]
[358258639,1744877433746,-528.43,0.00053,120]
[358258640,1744877433757,-500.0,0.0005315,120]
[358258641,1744877433767,-669.78,0.0005315,120]
[358258642,1744877433777,-1790.54,0.0005315,7]
[358258643,1744877433788,-540.17974243,0.00053424,120]
[358258644,1744877433798,-669.78,0.00053424,120]
[358258645,1744877433809,-1790.54,0.00053424,7]
[358258646,1744877433819,-222.43,0.00053424,120]
[358258647,1744877433831,-698.9,0.00053698,120]
[358258648,1744877433841,-669.78,0.00053698,120]
[358258649,1744877433852,-1790.54,0.00053698,7]
[358258650,1744877433863,-698.9,0.00053972,120]
[358258651,1744877433873,-669.78,0.00053972,120]
[358258652,1744877433883,-1790.54,0.00053972,7]
[358258653,1744877433894,-284.42382,0.00054,120]
[358258654,1744877433905,-698.9,0.00054246,120]
[358258655,1744877433915,-1790.54,0.00054246,7]
[358258656,1744877433925,-698.9,0.0005452,120]
[358258657,1744877433935,-1790.54,0.0005452,7]
[358258658,1744877433945,-1029.41030582,0.00054694,26]
[358258659,1744877433955,-622.83939163,0.00054694,15]
[358258660,1744877434187,-545.88,0.00054774,2]
[358258661,1744877434196,-31330.1566559,0.00054784,4]
[358258662,1744877434207,-698.9,0.00054794,120]
[358258663,1744877434216,-1790.54,0.00054794,7]
[358258664,1744877434226,-510.76451233,0.00054794,120]
[358258665,1744877434236,-500.0,0.00054794,120]
[358258666,1744877434246,-500.0,0.00054794,120]
[358258667,1744877434256,-500.0,0.00054794,120]
[358258668,1744877434265,-500.0,0.00054794,120]
[358258669,1744877434276,-500.0,0.00054794,120]
[358258670,1744877434286,-500.0,0.00054794,120]
[358258671,1744877434296,-500.0,0.00054794,120]
[358258672,1744877434305,-500.0,0.00054794,14]
[358258673,1744877434315,-604.51786826,0.00054794,120]
[358258674,1744877434324,-500.0,0.00054794,120]
[358258675,1744877434333,-500.0,0.00054794,120]
[358258676,1744877434343,-500.0,0.00054794,120]
[358258677,1744877434353,-500.0,0.00054794,120]
[358258678,1744877434362,-500.0,0.00054794,120]
[358258679,1744877434372,-500.0,0.00054794,120]
[358258680,1744877434382,-500.0,0.00054794,120]
[358258681,1744877434392,-500.0,0.00054794,120]
[358258682,1744877434402,-222.43,0.00054794,120]
[358258683,1744877434411,-505.34,0.00054794,120]
[358258684,1744877434421,-414.07851743,0.00054794,120]
[358258685,1744877434431,-508.00179243,0.00054794,120]
[358258686,1744877434440,-500.0,0.00054794,120]
[358258687,1744877434450,-500.0,0.00054794,120]
[358258688,1744877434459,-511.91,0.00054794,120]
[358258689,1744877434468,-513.35305713,0.00054794,120]
[358258690,1744877434478,-500.0,0.00054794,120]
[358258691,1744877434487,-500.0,0.00054794,120]
[358258692,1744877434497,-500.0,0.00054794,120]
[358258693,1744877434507,-500.0,0.00054794,120]
[358258694,1744877434516,-500.0,0.00054794,120]
[358258695,1744877434529,-500.0,0.00054794,120]
[358258696,1744877434539,-500.0,0.00054794,120]
[358258697,1744877434549,-500.0,0.00054794,120]
[358258698,1744877434559,-500.0,0.00054794,120]
[358258699,1744877434569,-536.8733054,0.00054794,120]
[358258700,1744877434579,-392.527066,0.00054794,120]
[358258701,1744877434591,-500.0,0.00054794,120]
[358258702,1744877434601,-500.0,0.00054794,120]
[358258703,1744877434611,-500.0,0.00054794,120]
[358258704,1744877434620,-500.0,0.00054794,120]
[358258705,1744877434630,-551.98846349,0.00054794,120]
[358258706,1744877434639,-500.0,0.00054794,120]
[358258707,1744877434648,-526.96623965,0.00054794,120]
[358258708,1744877434658,-527.32310354,0.00054794,120]
[358258709,1744877434667,-2000.0,0.00054794,120]
[358258710,1744877434676,-500.0,0.00054794,120]
[358258711,1744877434684,-500.0,0.00054794,120]
[358258712,1744877434693,-545.24029574,0.00054794,120]
[358258713,1744877434702,-577.23455589,0.00054794,120]
[358258714,1744877434710,-200.7866174,0.00054794,120]
[358258715,1744877434719,-511.56819173,0.00054794,120]
[358258716,1744877434729,-500.0,0.00054794,120]
[358258717,1744877434739,-500.0,0.00054794,120]
[358258718,1744877434748,-575.15287242,0.00054794,120]
[358258719,1744877434757,-502.81162279,0.00054794,120]
[358258720,1744877434766,-500.0,0.00054794,120]
[358258721,1744877434775,-605.87914046,0.00054794,120]
[358258722,1744877434784,-500.0,0.00054794,120]
[358258723,1744877434793,-617.35514319,0.00054794,120]
[358258724,1744877434802,-584.76505572,0.00054794,120]
[358258725,1744877434811,-547.30506494,0.00054794,120]
[358258726,1744877434820,-554.00653158,0.00054794,120]
[358258727,1744877434829,-509.45553612,0.00054794,120]
[358258728,1744877434838,-532.3029607,0.00054794,120]
[358258729,1744877434847,-500.0,0.00054794,120]
[358258730,1744877434857,-500.0,0.00054794,120]
[358258731,1744877434866,-500.0,0.00054794,120]
[358258732,1744877434875,-508.56539613,0.00054794,120]
[358258733,1744877434884,-168.71,0.00054794,120]
[358258734,1744877434893,-228.11197106,0.00054794,120]
[358258735,1744877434902,-2824.69,0.00054794,120]
[358258736,1744877434911,-500.0,0.00054794,120]
[358258737,1744877434920,-500.0,0.00054794,120]
[358258738,1744877434929,-514.30053028,0.00054794,120]
[358258739,1744877434938,-500.0,0.00054794,120]
[358258740,1744877434946,-522.0805343,0.00054794,120]
[358258741,1744877434955,-500.0,0.00054794,120]
[358258742,1744877434964,-500.0,0.00054794,120]
[358258743,1744877434973,-522.31914759,0.00054794,120]
[358258744,1744877434982,-542.70522221,0.00054794,120]
[358258745,1744877434991,-160.663922,0.00054794,120]
[358258746,1744877434999,-561.02181437,0.00054794,120]
[358258747,1744877435008,-500.0,0.00054794,120]
[358258748,1744877435017,-198.36534634,0.00054794,120]
[358258749,1744877435026,-500.0,0.00054794,120]
[358258750,1744877435035,-849.71,0.00054794,120]
[358258751,1744877435044,-500.0,0.00054794,120]
[358258752,1744877435053,-500.0,0.00054794,120]
[358258753,1744877435062,-312.076143,0.00054794,120]
[358258754,1744877435072,-500.0,0.00054794,120]
[358258755,1744877435081,-627.73494628,0.00054794,120]
[358258756,1744877435091,-603.80332993,0.00054794,120]
[358258757,1744877435100,-540.21098849,0.00054794,120]
[358258758,1744877435110,-500.0,0.00054794,120]
[358258759,1744877435120,-500.0,0.00054794,120]
[358258760,1744877435129,-308.01229418,0.00054794,120]
[358258761,1744877435138,-500.0,0.00054794,120]
[358258762,1744877435148,-168.882587,0.00054794,120]
[358258763,1744877435157,-500.0,0.00054794,120]
[358258764,1744877435167,-500.0,0.00054794,120]
[358258765,1744877435176,-500.0,0.00054794,120]
[358258766,1744877435186,-500.0,0.00054794,120]
[358258767,1744877435195,-458.9427191,0.00054794,120]
[358258768,1744877435204,-500.0,0.00054794,120]
[358258769,1744877435214,-522.72813005,0.00054794,120]
[358258770,1744877435224,-500.0,0.00054794,120]
[358258771,1744877435234,-362.32,0.00054794,120]
[358258772,1744877435244,-938.80308448,0.00054794,10]
[358258773,1744877435253,-500.0,0.00054794,120]
[358258774,1744877435263,-500.0,0.00054794,120]
[358258775,1744877435273,-500.0,0.00054794,120]
[358258776,1744877435283,-500.0,0.00054794,120]
[358258777,1744877435292,-500.0,0.00054794,120]
[358258778,1744877435302,-500.0,0.00054794,120]
[358258779,1744877435311,-500.0,0.00054794,120]
[358258780,1744877435320,-841.15,0.00054794,120]
[358258781,1744877435330,-525.79525516,0.00054794,120]
[358258782,1744877435340,-500.0,0.00054794,120]
[358258783,1744877435349,-500.0,0.00054794,120]
[358258784,1744877435358,-518.36251435,0.00054794,120]
[358258785,1744877435368,-500.0,0.00054794,120]
[358258786,1744877435378,-500.0,0.00054794,120]
[358258787,1744877435388,-783.83,0.00054794,120]
[358258788,1744877435397,-661.7,0.00054794,120]
[358258789,1744877435407,-500.0,0.00054794,120]
[358258790,1744877435417,-500.0,0.00054794,120]
[358258791,1744877435426,-500.0,0.00054794,120]
[358258792,1744877435436,-162.53,0.00054794,120]
[358258793,1744877435445,-500.0,0.00054794,120]
[358258794,1744877435455,-500.0,0.00054794,120]
[358258795,1744877435464,-500.0,0.00054794,120]
[358258796,1744877435474,-500.0,0.00054794,120]
[358258797,1744877435486,-500.0,0.00054794,120]
[358258798,1744877435495,-500.0,0.00054794,120]
[358258799,1744877435505,-500.0,0.00054794,120]
[358258800,1744877435515,-500.0,0.00054794,120]
[358258801,1744877435526,-500.0,0.00054794,120]
[358258802,1744877435538,-517.46401439,0.00054794,120]
[358258803,1744877435547,-500.0,0.00054794,120]
[358258804,1744877435557,-500.0,0.00054794,120]
[358258805,1744877435568,-795.96,0.00054794,120]
[358258806,1744877435577,-500.0,0.00054794,120]
[358258807,1744877435587,-500.0,0.00054794,120]
[358258808,1744877435596,-500.0,0.00054794,120]
[358258809,1744877435614,-500.0,0.00054794,120]
[358258810,1744877435624,-500.0,0.00054794,120]
[358258811,1744877435634,-469.79826472,0.00054794,120]
[358258812,1744877435644,-500.0,0.00054794,120]
[358258813,1744877435654,-500.0,0.00054794,120]
[358258814,1744877435664,-500.0,0.00054794,120]
[358258815,1744877435674,-500.0,0.00054794,120]
[358258816,1744877435683,-500.0,0.00054794,120]
[358258817,1744877435693,-504.95831916,0.00054794,120]
[358258818,1744877435702,-500.0,0.00054794,120]
[358258819,1744877435712,-500.0,0.00054794,120]
[358258820,1744877435721,-500.0,0.00054794,120]
[358258821,1744877435732,-500.0,0.00054794,120]
[358258822,1744877435743,-500.0,0.00054794,120]
[358258823,1744877435753,-500.0,0.00054794,120]
[358258824,1744877435762,-500.0,0.00054794,120]
[358258825,1744877435771,-500.0,0.00054794,120]
[358258826,1744877435780,-500.0,0.00054794,120]
[358258827,1744877435789,-500.0,0.00054794,120]
[358258828,1744877435798,-500.0,0.00054794,120]
[358258829,1744877435807,-500.0,0.00054794,120]
[358258830,1744877435815,-500.0,0.00054794,120]
[358258831,1744877435825,-500.0,0.00054794,120]
[358258832,1744877435835,-500.0,0.00054794,120]
[358258833,1744877435844,-500.0,0.00054794,120]
[358258834,1744877435854,-500.0,0.00054794,120]
[358258835,1744877435863,-531.91109091,0.00054794,120]
[358258836,1744877435872,-500.0,0.00054794,120]
[358258837,1744877435881,-500.0,0.00054794,120]
[358258838,1744877435891,-500.0,0.00054794,120]
[358258839,1744877435900,-500.0,0.00054794,120]
[358258840,1744877435910,-500.0,0.00054794,120]
[358258841,1744877435919,-500.0,0.00054794,120]
[358258842,1744877435929,-500.0,0.00054794,120]
[358258843,1744877435939,-500.0,0.00054794,120]
[358258844,1744877435949,-505.17720748,0.00054794,120]
[358258845,1744877435958,-500.0,0.00054794,120]
[358258846,1744877435967,-500.0,0.00054794,120]
[358258847,1744877435976,-531.89,0.00054794,120]
[358258848,1744877435985,-610.04592286,0.00054794,120]
[358258849,1744877435995,-500.0,0.00054794,120]
[358258850,1744877436003,-500.0,0.00054794,120]
[358258851,1744877436012,-500.0,0.00054794,120]
[358258852,1744877436021,-536.75249254,0.00054794,120]
[358258853,1744877436030,-500.0,0.00054794,120]
[358258854,1744877436039,-500.0,0.00054794,120]
[358258855,1744877436048,-500.0,0.00054794,120]
[358258856,1744877436057,-1704.96,0.00054794,120]
[358258857,1744877436066,-1117.16,0.00054794,120]
[358258858,1744877436074,-500.0,0.00054794,120]
[358258859,1744877436083,-500.0,0.00054794,120]
[358258860,1744877436092,-500.0,0.00054794,120]
[358258861,1744877436100,-1306.39,0.00054794,120]
[358258862,1744877436109,-583.72,0.00054794,120]
[358258863,1744877436118,-572.17,0.00054794,120]
[358258864,1744877436126,-500.0,0.00054794,120]
[358258865,1744877436134,-500.0,0.00054794,30]
[358258866,1744877436144,-500.0,0.00054794,120]
[358258867,1744877436152,-500.0,0.00054794,120]
[358258868,1744877436161,-500.0,0.00054794,120]
[358258869,1744877436170,-502.44848701,0.00054794,120]
[358258870,1744877436179,-500.0,0.00054794,120]
[358258871,1744877436187,-500.0,0.00054794,120]
[358258872,1744877436196,-538.08655781,0.00054794,120]
[358258873,1744877436205,-500.0,0.00054794,120]
[358258874,1744877436214,-500.0,0.00054794,120]
[358258875,1744877436223,-500.0,0.00054794,120]
[358258876,1744877436233,-500.0,0.00054794,120]
[358258877,1744877436242,-1075.6242176,0.00054794,120]
[358258878,1744877436252,-500.0,0.00054794,120]
[358258879,1744877436261,-500.0,0.00054794,120]
[358258880,1744877436270,-597.13,0.00054794,120]
[358258881,1744877436280,-503.85131081,0.00054794,120]
[358258882,1744877436289,-500.0,0.00054794,120]
[358258883,1744877436299,-500.0,0.00054794,120]
[358258884,1744877436308,-500.0,0.00054794,120]
[358258885,1744877436317,-500.0,0.00054794,120]
[358258886,1744877436326,-500.0,0.00054794,120]
[358258887,1744877436335,-464.34969705,0.00054794,120]
[358258888,1744877436345,-182.44078616,0.00054794,120]
[358258889,1744877436355,-500.0,0.00054794,120]
[358258890,1744877436364,-500.0,0.00054794,120]
[358258891,1744877436373,-525.0,0.00054794,120]
[358258892,1744877436382,-500.0,0.00054794,120]
[358258893,1744877436392,-500.0,0.00054794,120]
[358258894,1744877436402,-500.0,0.00054794,120]
[358258895,1744877436412,-500.0,0.00054794,120]
[358258896,1744877436421,-500.0,0.00054794,120]
[358258897,1744877436431,-500.0,0.00054794,120]
[358258898,1744877436441,-2039.5,0.00054794,120]
[358258899,1744877436451,-500.0,0.00054794,120]
[358258900,1744877436460,-500.0,0.00054794,120]
[358258901,1744877436470,-500.0,0.00054794,120]
[358258902,1744877436480,-500.0,0.00054794,120]
[358258903,1744877436489,-500.0,0.00054794,120]
[358258904,1744877436498,-500.0,0.00054794,120]
[358258905,1744877436507,-500.0,0.00054794,120]
[358258906,1744877436517,-500.0,0.00054794,120]
[358258907,1744877436529,-996.39,0.00054794,120]
[358258908,1744877436539,-500.0,0.00054794,120]
[358258909,1744877436548,-500.0,0.00054794,120]
[358258910,1744877436558,-637.71,0.00054794,120]
[358258911,1744877436569,-500.0,0.00054794,120]
[358258912,1744877436579,-500.0,0.00054794,120]
[358258913,1744877436589,-598.35,0.00054794,120]
[358258914,1744877436599,-500.0,0.00054794,120]
[358258915,1744877436610,-500.0,0.00054794,120]
[358258916,1744877436620,-719.55,0.00054794,120]
[358258917,1744877436629,-575.34,0.00054794,120]
[358258918,1744877436639,-500.0,0.00054794,120]
[358258919,1744877436649,-500.0,0.00054794,120]
[358258920,1744877436659,-497.13452838,0.00054794,120]
[358258921,1744877436668,-500.0,0.00054794,120]
[358258922,1744877436678,-500.0,0.00054794,120]
[358258923,1744877436687,-573.78,0.00054794,30]
[358258924,1744877436698,-698.9,0.00055068,120]
[358258925,1744877436709,-1790.54,0.00055068,7]
[358258926,1744877436718,-1790.54,0.00055342,7]
[358258927,1744877436729,-10443.385552,0.00055575,4]
[358258928,1744877436738,-4295.0,0.00055616,7]
[358258929,1744877436748,-1790.63172009,0.00055616,7]
[358258930,1744877436757,-1000.0,0.00055649,120]
[358258931,1744877436767,-222.43,0.00056164,120]
[358258932,1744877436775,-10443.385552,0.00057504,4]
[358258933,1744877436784,-222.43,0.00057533,120]
[358258934,1744877436792,-500.0,0.00057534,120]
[358258935,1744877436802,-500.0,0.00057534,120]
[358258936,1744877436810,-188.0,0.00058,120]
[358258937,1744877436820,-222.43,0.00058903,120]
[358258938,1744877436830,-500.0,0.00060273,120]
[358258939,1744877436839,-222.43,0.00060273,120]
[358258940,1744877436848,-222.43,0.00061643,120]
[358258941,1744877436858,-1000.0,0.00061833,120]
[358258942,1744877436867,-373.5084516,0.00063013,120]
[358258943,1744877436876,-222.43,0.00063013,120]
[358258944,1744877436886,-222.43,0.00064383,120]
[358258945,1744877436895,-222.43,0.00065753,120]
[358258946,1744877436905,-222.43,0.00067123,120]
[358258947,1744877436914,-189.02,0.00068,120]
[358258948,1744877436923,-1000.0,0.00068016,120]
[358258949,1744877436933,-10443.385552,0.00068463,5]
[358258950,1744877436942,-222.43,0.00068492,120]
[358258951,1744877436951,-447.94927498,0.00069,120]
[358258952,1744877436960,-222.43,0.00069862,120]
[358258953,1744877436970,-222.43,0.00071232,120]
[358258954,1744877436979,-222.43,0.00072602,120]
[358258955,1744877436988,-222.43,0.00073972,120]
[358258956,1744877436998,-1000.0,0.00074199,120]
[358258957,1744877437007,-222.43,0.00075342,120]
[358258958,1744877437016,-222.43,0.00076712,120]
[358258959,1744877437026,-222.43,0.00078081,120]
[358258960,1744877437035,-500.0,0.00079,120]
[358258961,1744877437044,-10443.385552,0.00079422,6]
[358258962,1744877437053,-10443.385552,0.00079432,6]
[358258963,1744877437063,-545.88,0.00079432,30]
[358258964,1744877437072,-31330.1566559,0.00079442,6]
[358258965,1744877437081,-31235.705424,0.00079442,6]
[358258966,1744877437090,-222.43,0.00079451,120]
[358258967,1744877437099,-612.85,0.00079452,120]
[358258968,1744877437109,-500.0,0.00079452,120]
[358258969,1744877437118,-500.0,0.00079452,120]